bitfinex/quotes_SOLUSD_20250924
["timestamp","ask_amount","ask_price","bid_price","bid_amount"]
[1758690568243,51.45559401,208.61,208.53,0.69]
[1758690568451,55.27293057,208.61,208.53,0.69]
[1758690569164,51.45559401,208.61,208.53,0.69]
[1758690569364,26.0,208.58,208.53,0.69]
[1758690569865,26.0,208.58,208.54,0.69]
[1758690570245,51.45559401,208.61,208.54,0.69]
[1758690570463,37.86,208.61,208.54,0.69]
[1758690570774,26.0,208.58,208.54,0.69]
[1758690571147,133.9,208.62,208.55,0.69]
[1758690571463,26.0,208.59,208.55,0.69]
[1758690571668,26.0,208.59,208.56,4.79478327]
[1758690571840,26.0,208.59,208.55,0.69]
[1758690572454,26.0,208.59,208.52,7.01834828]
[1758690572769,26.0,208.59,208.53,0.69]
[1758690573742,26.0,208.59,208.54,4.79524311]
[1758690573948,26.0,208.59,208.55,0.69]
[1758690574561,26.0,208.59,208.54,4.79524311]
[1758690574866,26.0,208.59,208.55,5.48494017]
[1758690575069,26.0,208.59,208.56,0.69]
[1758690575265,26.0,208.59,208.57,0.69]
[1758690575576,26.0,208.59,208.55,4.79494017]
[1758690575577,26.0,208.59,208.58,0.69]
[1758690576242,51.43559401,208.67,208.58,0.69]
[1758690576442,17.53063545,208.68,208.58,2.22286144]
[1758690576765,37.84,208.68,208.6,4.79386385]
[1758690576967,37.84,208.68,208.6,5.48386385]
[1758690577169,26.0,208.65,208.6,5.48386385]
[1758690577504,26.0,208.65,208.57,0.69]
[1758690577648,13.59559401,208.64,208.52,4.79570305]
[1758690577844,26.0,208.61,208.5,5.48602662]
[1758690578047,26.0,208.61,208.51,0.69]
[1758690578264,26.0,208.61,208.52,1.53286144]
[1758690578453,26.0,208.61,208.53,0.69]
[1758690578454,26.0,208.6,208.53,0.69]
[1758690579997,26.0,208.6,208.51,4.79593304]
[1758690580576,26.0,208.6,208.51,5.48593304]
[1758690581569,26.0,208.6,208.49,2.22286144]
[1758690583487,26.0,208.56,208.47,2.22286144]
[1758690583863,26.0,208.56,208.48,5.48662294]
[1758690585381,26.0,208.56,208.49,1.53286144]
[1758690585558,26.0,208.56,208.51,1.53286144]
[1758690585764,26.0,208.56,208.52,0.69]
[1758690585966,26.0,208.56,208.51,1.53286144]
[1758690586271,26.0,208.56,208.51,2.22286144]
[1758690586669,26.0,208.56,208.51,7.01876226]
[1758690587186,26.0,208.56,208.49,1.53286144]
[1758690588187,26.0,208.56,208.49,6.32922488]
[1758690589194,26.0,208.56,208.49,4.79636344]
[1758690589387,26.0,208.56,208.49,5.48636344]
[1758690589578,26.0,208.56,208.5,6.32887042]
[1758690590373,26.0,208.56,208.51,0.7]
[1758690590702,159.9,208.59,208.51,0.7]
[1758690590882,159.9,208.59,208.52,0.7]
[1758690591082,159.9,208.59,208.5,18.31927809]
[1758690591386,159.9,208.59,208.53,0.7]
[1758690593472,159.9,208.59,208.51,0.7]
[1758690593794,159.9,208.59,208.51,5.49582416]
[1758690595892,26.0,208.56,208.51,5.49582416]
[1758690596092,26.0,208.56,208.52,0.7]
[1758690596673,26.0,208.56,208.52,5.49566354]
[1758690596972,26.0,208.56,208.5,5.49593786]
[1758690597187,26.0,208.55,208.48,7.19196496]
[1758690597992,26.0,208.55,208.49,0.7]
[1758690598208,13.59559401,208.63,208.49,0.7]
[1758690598209,26.0,208.61,208.53,2.39545637]
[1758690598491,26.0,208.61,208.53,3.09545637]
[1758690598669,26.0,208.61,208.53,0.7]
[1758690598873,26.0,208.61,208.54,2.39545637]
[1758690599195,26.0,208.61,208.49,11.99098278]
[1758690599500,63.8,208.61,208.51,3.09545637]
[1758690600373,63.8,208.61,208.49,2.39545637]
[1758690600581,26.0,208.57,208.49,2.39545637]
[1758690600777,26.0,208.57,208.49,3.09545637]
[1758690601298,26.0,208.57,208.49,2.39545637]
[1758690601500,26.0,208.57,208.48,4.79661764]
[1758690602501,26.0,208.57,208.47,45.69227901]
[1758690602675,26.0,208.57,208.47,2.39545637]
[1758690602876,26.0,208.54,208.47,2.39545637]
[1758690603196,133.9,208.59,208.47,2.39545637]
[1758690603197,26.0,208.55,208.49,2.39545637]
[1758690605023,26.0,208.56,208.49,2.39545637]
[1758690605799,26.0,208.56,208.49,7.19176444]
[1758690606418,26.0,208.56,208.5,0.7]
[1758690607500,37.8,208.61,208.53,2.39545637]
[1758690607700,3.93464205,208.68,208.57,2.39545637]
[1758690607902,3.4651737,208.71,208.59,2.39545637]
[1758690608103,37.8,208.7,208.59,2.39545637]
[1758690608403,26.0,208.66,208.59,2.39545637]
[1758690608611,13.59559401,208.69,208.61,2.39545637]
[1758690609213,26.0,208.66,208.59,2.39545637]
[1758690609413,26.0,208.62,208.52,2.39545637]
[1758690609923,26.0,208.62,208.52,3.09545637]
[1758690611017,26.0,208.62,208.52,7.89095444]
[1758690611217,26.0,208.58,208.5,2.39545637]
[1758690611398,26.0,208.58,208.5,3.09545637]
[1758690611599,26.0,208.58,208.5,0.7]
[1758690611807,26.0,208.58,208.5,3.09545637]
[1758690612503,26.0,208.58,208.48,2.39545637]
[1758690612928,26.0,208.54,208.47,37.8]
[1758690613128,26.0,208.54,208.44,0.7]
[1758690613314,26.0,208.5,208.41,7.89360238]
[1758690613934,26.0,208.5,208.39,7.39394088]
[1758690614815,26.0,208.5,208.4,3.09545637]
[1758690615404,26.0,208.5,208.4,0.7]
[1758690615603,26.0,208.5,208.4,3.09545637]
[1758690615801,26.0,208.5,208.41,4.79823424]
[1758690616004,26.0,208.5,208.41,7.19369061]
[1758690616206,26.0,208.49,208.41,7.19369061]
[1758690616609,26.0,208.5,208.41,10.45013557]
[1758690616813,13.59559401,208.62,208.47,5.65190133]
[1758690617113,37.8,208.61,208.5,5.65190133]
[1758690617308,3.22827129,208.6,208.52,5.65190133]
[1758690617527,53.32411713,208.66,208.53,5.65190133]
[1758690617830,41.027396,208.65,208.54,0.7]
[1758690618027,26.0,208.61,208.51,5.495794]
[1758690618215,26.0,208.61,208.53,5.65190133]
[1758690618528,13.59559401,208.64,208.55,5.65190133]
[1758690618729,26.0,208.61,208.55,5.65190133]
[1758690618907,26.0,208.61,208.51,4.795794]
[1758690619108,13.59559401,208.64,208.52,0.7]
[1758690619320,26.0,208.61,208.52,6.35190133]
[1758690619506,26.0,208.61,208.53,5.65190133]
[1758690619711,26.0,208.61,208.53,10.44733174]
[1758690619915,26.0,208.61,208.52,6.35190133]
[1758690620111,26.0,208.61,208.49,5.49618963]
[1758690620429,37.8,208.65,208.49,5.49618963]
[1758690620430,26.0,208.57,208.52,5.65190133]
[1758690621319,26.0,208.57,208.52,6.31190133]
[1758690623311,26.0,208.57,208.52,11.10759178]
[1758690624424,13.59559401,208.61,208.52,11.10759178]
[1758690624736,13.59559401,208.61,208.52,0.66]
[1758690624906,26.0,208.58,208.52,0.66]
[1758690625630,26.0,208.58,208.5,6.31190133]
[1758690625934,26.0,208.58,208.51,5.65190133]
[1758690626434,26.0,208.58,208.51,6.31190133]
[1758690626628,26.0,208.58,208.51,11.10782214]
[1758690627732,26.0,208.58,208.51,5.45592081]
[1758690627930,26.0,208.58,208.43,13.59559401]
[1758690627931,26.0,208.57,208.48,6.31190133]
[1758690628131,26.0,208.57,208.48,0.66]
[1758690628338,26.0,208.57,208.48,6.31190133]
[1758690629432,26.0,208.57,208.47,5.65190133]
[1758690629621,133.9,208.6,208.47,5.65190133]
[1758690629622,26.0,208.53,208.47,5.65190133]
[1758690629827,26.0,208.53,208.46,11.10878889]
[1758690630050,26.0,208.53,208.46,6.31190133]
[1758690630417,26.0,208.53,208.46,0.66]
[1758690630743,26.0,208.52,208.44,0.66]
[1758690630941,26.0,208.52,208.44,6.31190133]
[1758690631425,26.0,208.52,208.44,11.10928698]
[1758690631622,26.0,208.52,208.45,6.31190133]
[1758690631832,26.0,208.52,208.46,5.65190133]
[1758690632338,26.0,208.52,208.45,6.31190133]
[1758690632934,26.0,208.52,208.45,11.10914075]
[1758690634819,26.0,208.52,208.46,5.65190133]
[1758690635023,26.0,208.52,208.46,6.31190133]
[1758690636020,26.0,208.52,208.46,11.10884104]
[1758690636241,26.0,208.52,208.46,6.31190133]
[1758690636445,26.0,208.52,208.46,0.66]
[1758690637738,26.0,208.52,208.46,5.45707912]
[1758690638435,26.0,208.52,208.46,11.10898045]
[1758690638633,26.0,208.52,208.46,7.8537477]
[1758690638933,26.0,208.52,208.46,0.66]
[1758690639833,26.0,208.52,208.44,0.66]
[1758690640152,133.9,208.55,208.39,5.65867354]
[1758690640153,26.0,208.48,208.39,5.65867354]
[1758690640661,26.0,208.48,208.39,8.05534212]
[1758690641931,26.0,208.48,208.41,4.79823424]
[1758690642133,26.0,208.48,208.41,7.85490282]
[1758690642833,26.0,208.46,208.41,4.79823424]
[1758690644033,4.79823424,208.57,208.49,26.0]
[1758690644245,133.9,208.51,208.49,26.0]
[1758690645151,133.9,208.51,208.42,28.53639751]
[1758690648256,133.9,208.51,208.41,23.59127398]
[1758690648557,13.59559401,208.5,208.4,23.47009127]
[1758690648861,13.59559401,208.5,208.41,0.0428548]
[1758690649162,133.9,208.51,208.42,23.73842663]
[1758690649460,133.9,208.5,208.44,23.12853774]
[1758690650365,133.9,208.5,208.46,23.75149081]
[1758690650568,133.9,208.5,208.46,24.44149081]
[1758690651149,133.9,208.5,208.46,23.75149081]
[1758690651472,133.9,208.5,208.47,3.08666858]
[1758690652049,133.9,208.5,208.47,0.69]
[1758690652600,133.9,208.5,208.45,23.33423504]
[1758690652766,133.9,208.5,208.45,28.8213733]
[1758690653273,133.9,208.5,208.45,28.1313733]
[1758690653450,133.9,208.5,208.47,23.33148472]
[1758690656178,133.9,208.5,208.47,24.02148472]
[1758690656590,133.9,208.5,208.48,0.69]
[1758690657281,133.9,208.5,208.47,23.33148472]
[1758690659869,133.9,208.5,208.47,24.02148472]
[1758690660157,133.9,208.5,208.48,0.69]
[1758690660591,133.9,208.5,208.49,0.69]
[1758690660799,133.9,208.59,208.49,2.22399714]
[1758690660956,133.9,208.59,208.53,1.53399714]
[1758690661266,14.42065037,208.68,208.54,2.22399714]
[1758690661471,51.37559401,208.67,208.54,2.22399714]
[1758690661674,41.00877714,208.66,208.55,2.22399714]
[1758690661863,3.22877714,208.65,208.56,0.69]
[1758690662284,41.00877714,208.65,208.56,0.69]
[1758690662480,37.78,208.65,208.56,0.69]
[1758690663293,13.59559401,208.64,208.51,0.69]
[1758690663467,16.82332139,208.64,208.51,0.69]
[1758690663665,16.82332139,208.64,208.47,48.91580003]
[1758690663876,16.82332139,208.64,208.48,0.69]
[1758690664284,16.82332139,208.64,208.48,7.02050919]
[1758690666014,16.82332139,208.64,208.49,5.48634968]
[1758690667080,133.9,208.63,208.49,5.48634968]
[1758690667286,37.78,208.62,208.54,1.53399714]
[1758690667481,171.68,208.62,208.54,2.22399714]
[1758690668311,171.68,208.62,208.54,7.01918516]
[1758690669316,171.68,208.62,208.56,1.53399714]
[1758690669488,133.9,208.62,208.56,1.53399714]
[1758690669891,133.9,208.62,208.55,2.22399714]
[1758690670299,133.9,208.62,208.55,7.0190084]
[1758690670510,133.9,208.62,208.26,0.2]
[1758690670511,133.9,208.62,208.52,7.01970019]
[1758690670682,133.9,208.62,208.54,1.53399714]
[1758690670882,171.66,208.62,208.54,2.22399714]
[1758690671105,171.66,208.62,208.55,1.53399714]
[1758690671308,133.9,208.62,208.55,2.22399714]
[1758690672588,133.9,208.62,208.56,4.79478327]
[1758690672790,133.9,208.62,208.55,5.48500377]
[1758690673314,133.9,208.62,208.55,0.69]
[1758690673883,133.9,208.62,208.55,5.48490705]
[1758690674105,133.9,208.62,208.56,0.68]
[1758690674407,133.9,208.62,208.56,2.21399714]
[1758690674707,133.9,208.62,208.56,5.47461255]
[1758690675009,133.9,208.62,208.56,7.00860969]
[1758690675207,133.9,208.62,208.56,5.47461255]
[1758690675382,133.9,208.62,208.53,1.53399714]
[1758690675709,133.9,208.62,208.5,0.68]
[1758690675710,37.76,208.61,208.5,0.68]
[1758690675885,37.76,208.61,208.48,0.68]
[1758690676084,37.76,208.61,208.48,2.21399714]
[1758690676282,37.76,208.61,208.49,0.68]
[1758690676704,37.76,208.61,208.49,7.01028821]
[1758690676906,37.76,208.61,208.52,1.53399714]
[1758690677091,37.76,208.61,208.52,2.21399714]
[1758690677609,37.76,208.61,208.52,0.68]
[1758690677914,37.76,208.61,208.52,5.47553785]
[1758690678322,37.76,208.61,208.5,4.79604772]
[1758690679303,37.76,208.61,208.49,7.01037907]
[1758690679716,37.76,208.61,208.49,0.68]
[1758690679898,37.76,208.61,208.48,5.47661085]
[1758690681022,37.76,208.61,208.48,0.72]
[1758690681400,37.76,208.61,208.48,2.25399714]
[1758690681612,37.76,208.61,208.49,2.25399714]
[1758690681812,37.76,208.6,208.51,1.53399714]
[1758690682019,133.9,208.59,208.51,2.25399714]
[1758690682222,133.9,208.59,208.53,1.53399714]
[1758690682421,133.9,208.59,208.53,2.25399714]
[1758690682912,133.9,208.59,208.51,1.53399714]
[1758690683316,133.9,208.59,208.52,1.53399714]
[1758690684507,133.9,208.59,208.52,6.32947443]
[1758690684714,133.9,208.59,208.52,7.04947443]
[1758690685104,133.9,208.59,208.5,1.53399714]
[1758690685305,133.9,208.59,208.46,11.99228152]
[1758690685306,147.49559401,208.58,208.4,23.47009127]
[1758690685614,33.59559401,208.56,208.45,23.33423504]
[1758690685798,20.0,208.49,208.4,23.47009127]
[1758690686109,54.58038645,208.48,208.4,23.51294717]
[1758690686318,52.19939066,208.48,208.42,23.73842663]
[1758690686619,37.76,208.48,208.4,23.47009127]
[1758690686823,37.76,208.48,208.4,23.51294717]
[1758690687018,2.72294824,208.55,208.42,23.73842663]
[1758690687321,0.17623148,208.54,208.4,23.47009127]
[1758690687529,37.76,208.53,208.4,23.51294717]
[1758690687825,37.76,208.52,208.42,23.73842663]
[1758690688025,37.76,208.52,208.4,23.47009127]
[1758690688321,13.59559401,208.51,208.42,23.73842663]
[1758690688524,37.76,208.5,208.4,23.47009127]
[1758690688696,13.59559401,208.49,208.42,23.73842663]
[1758690688896,33.54,208.48,208.4,23.47009127]
[1758690689102,2.51069595,208.48,208.42,23.73842663]
[1758690689417,2.51069595,208.48,208.4,23.47009127]
[1758690689624,2.51069595,208.48,208.4,23.51294717]
[1758690689929,2.51069595,208.48,208.42,23.73842663]
[1758690690148,2.51069595,208.48,208.4,23.47009127]
[1758690690335,2.51069595,208.48,208.4,23.51294717]
[1758690690505,2.51069595,208.48,208.42,23.73842663]
[1758690690706,2.51069595,208.48,208.4,23.47009127]
[1758690690934,2.51069595,208.48,208.4,23.51294717]
[1758690691138,2.51069595,208.48,208.41,0.02879193]
[1758690691400,2.51069595,208.48,208.4,37.76]
[1758690691629,2.51069595,208.48,208.41,37.76]
[1758690692639,2.51069595,208.48,208.39,0.2]
[1758690692932,2.51069595,208.48,208.4,34.1]
[1758690693230,2.51069595,208.48,208.39,0.2]
[1758690693231,2.51069595,208.48,208.39,13.79559401]
[1758690693402,14.43244413,208.58,208.45,20.0]
[1758690693707,14.43244413,208.58,208.45,23.86]
[1758690693708,2.51027303,208.49,208.45,23.86]
[1758690693913,13.59559401,208.57,208.43,37.96]
[1758690694116,28.02873249,208.57,208.43,37.96]
[1758690694311,2.51039677,208.5,208.43,37.96]
[1758690694525,29.08,208.6,208.43,37.96]
[1758690694526,13.59559401,208.59,208.43,37.96]
[1758690694925,2.51053994,208.51,208.41,0.72]
[1758690695131,13.59559401,208.59,208.44,37.98]
[1758690695635,2.51059198,208.5,208.44,37.98]
[1758690695820,13.59559401,208.59,208.44,37.98]
[1758690696022,2.51058219,208.5,208.44,37.98]
[1758690696216,13.59559401,208.52,208.44,37.98]
[1758690696415,13.59559401,208.59,208.44,37.98]
[1758690696618,28.51067873,208.49,208.39,0.92]
[1758690696818,39.59559401,208.53,208.39,0.92]
[1758690697037,39.59559401,208.53,208.4,0.72]
[1758690697243,2.51068601,208.49,208.4,0.72]
[1758690697434,39.59559401,208.53,208.4,0.72]
[1758690698343,2.5105759,208.5,208.4,0.72]
[1758690699145,2.5105759,208.5,208.41,37.98]
[1758690700941,2.5105759,208.5,208.41,38.7]
[1758690701241,2.5105759,208.5,208.41,37.98]
[1758690701422,2.5105759,208.5,208.42,0.72]
[1758690701943,33.27735138,208.49,208.44,20.0]
[1758690702243,26.0,208.46,208.45,37.96]
[1758690702444,26.0,208.46,208.45,38.0]
[1758690702645,26.0,208.46,208.43,0.72]
[1758690702832,26.0,208.46,208.45,38.02]
[1758690703530,26.0,208.46,208.41,0.72]
[1758690703726,26.0,208.46,208.45,38.02]
[1758690705927,26.0,208.46,208.45,38.0]
[1758690708622,26.0,208.47,208.45,38.0]
[1758690709344,16.10576252,208.53,208.45,38.72]
[1758690709550,26.0,208.49,208.45,38.72]
[1758690710452,26.0,208.52,208.46,0.66]
[1758690712945,26.0,208.52,208.47,37.94]
[1758690713238,26.0,208.52,208.48,37.94]
[1758690714051,26.0,208.52,208.48,38.6]
[1758690714561,26.0,208.49,208.48,38.6]
[1758690715170,133.9,208.51,208.48,38.6]
[1758690715334,133.9,208.51,208.48,58.6]
[1758690715540,133.9,208.51,208.49,0.66]
[1758690715947,2.50988215,208.59,208.49,0.66]
[1758690716343,28.50988215,208.59,208.49,0.66]
[1758690717468,4.89052062,208.65,208.49,6.9919613]
[1758690717673,13.59559401,208.64,208.52,20.0]
[1758690717970,26.0,208.61,208.5,20.66]
[1758690718277,26.0,208.61,208.51,38.58]
[1758690718570,26.0,208.61,208.52,0.66]
[1758690719348,26.0,208.61,208.51,37.92]
[1758690719549,26.0,208.61,208.52,0.66]
[1758690719948,26.0,208.61,208.53,37.92]
[1758690720952,13.59559401,208.6,208.48,20.0]
[1758690721158,26.0,208.57,208.49,38.58]
[1758690721356,26.0,208.56,208.49,38.58]
[1758690721552,26.0,208.56,208.5,37.9]
[1758690721757,26.0,208.56,208.51,0.66]
[1758690722064,26.0,208.56,208.52,37.94]
[1758690722267,26.0,208.56,208.53,0.66]
[1758690722459,26.0,208.56,208.54,0.66]
[1758690722870,26.0,208.56,208.52,37.94]
[1758690723065,26.0,208.56,208.52,38.6]
[1758690723269,26.0,208.56,208.53,0.66]
[1758690724073,26.0,208.56,208.54,0.66]
[1758690724269,26.0,208.56,208.52,37.94]
[1758690724580,26.0,208.56,208.55,0.66]
[1758690725185,133.9,208.59,208.55,0.66]
[1758690725573,26.0,208.56,208.55,0.66]
[1758690725760,26.0,208.56,208.52,37.94]
[1758690726260,26.0,208.56,208.53,0.66]
[1758690726478,26.0,208.62,208.53,0.66]
[1758690727274,26.0,208.62,208.47,4.79663157]
[1758690727275,26.0,208.58,208.47,20.66]
[1758690727463,26.0,208.58,208.48,38.64]
[1758690727664,26.0,208.58,208.49,37.84]
[1758690727986,3.21724856,208.57,208.49,37.84]
[1758690728183,26.0,208.58,208.48,0.66]
[1758690728380,3.21746105,208.57,208.5,37.96]
[1758690730164,3.21746105,208.57,208.46,0.66]
[1758690730165,26.0,208.53,208.46,0.66]
[1758690730484,147.49559401,208.56,208.47,37.94]
[1758690730485,26.0,208.49,208.47,37.94]
[1758690730859,26.0,208.49,208.48,0.66]
[1758690733688,26.0,208.49,208.48,38.6]
[1758690734066,26.0,208.49,208.48,37.94]
[1758690734474,26.0,208.49,208.48,38.62]
[1758690737092,26.0,208.49,208.48,37.94]
[1758690737594,26.0,208.49,208.48,38.62]
[1758690739275,26.0,208.49,208.48,38.56]
[1758690740295,26.0,208.49,208.44,0.68]
[1758690740507,26.0,208.49,208.45,37.86]
[1758690740707,26.0,208.49,208.4,0.65]
[1758690740877,26.0,208.49,208.41,37.86]
[1758690741593,26.0,208.45,208.39,0.2]
[1758690741989,26.0,208.45,208.4,37.92]
[1758690743506,26.0,208.42,208.41,37.9]
[1758690751194,26.0,208.43,208.41,38.55]
[1758690751395,26.0,208.43,208.41,37.9]
[1758690751601,13.59559401,208.42,208.39,0.2]
[1758690751781,13.59559401,208.42,208.4,9.14]
[1758690752187,15.52075344,208.42,208.4,9.14]
[1758690752704,2.50993604,208.51,208.4,9.14]
[1758690753018,13.59559401,208.42,208.4,9.14]
[1758690755400,9.14,208.46,208.4,9.14]
[1758690755607,13.59559401,208.42,208.4,9.14]
[1758690756021,26.0,208.4,208.39,19.36]
[1758690756209,13.59559401,208.42,208.36,38.06]
[1758690756210,26.0,208.39,208.36,38.06]
[1758690757110,26.0,208.39,208.36,0.2]
[1758690757318,26.0,208.39,208.35,37.84000001]
[1758690757627,26.0,208.35,208.31,0.2]
[1758690758098,26.0,208.32,208.31,0.2]
[1758690759304,26.0,208.32,208.31,0.85]
[1758690761718,26.0,208.32,208.3,38.04]
[1758690761719,38.49416045,208.32,208.3,38.04]
[1758690763026,4.80053766,208.31,208.3,38.04]
[1758690764135,4.80053766,208.31,208.3,38.69]
[1758690766055,4.80053766,208.31,208.3,38.04]
[1758690766646,4.80053766,208.31,208.3,38.69]
[1758690767214,4.80053766,208.31,208.3,0.2]
[1758690767420,4.80053766,208.31,208.29,37.52]
[1758690768054,133.9,208.3,208.29,37.52]
[1758690768420,133.9,208.3,208.29,38.17]
[1758690769048,0.68,208.4,208.29,58.17]
[1758690769359,11.99673688,208.39,208.32,20.0]
[1758690769559,11.99673688,208.39,208.33,38.47]
[1758690769737,11.99673688,208.39,208.35,20.0]
[1758690770053,26.0,208.36,208.35,20.0]
[1758690770257,14.44217114,208.4,208.37,20.0]
[1758690770430,4.79823424,208.41,208.38,38.51]
[1758690770634,4.79823424,208.41,208.39,0.69]
[1758690770853,26.0,208.4,208.39,0.69]
[1758690771245,30.79846449,208.4,208.39,38.51]
[1758690772349,11.99342422,208.45,208.4,20.0]
[1758690772551,23.98049827,208.51,208.44,20.0]
[1758690772752,4.79616306,208.5,208.45,38.51]
[1758690772943,4.79616306,208.5,208.46,0.69]
[1758690773149,4.79616306,208.5,208.47,0.69]
[1758690773552,26.0,208.48,208.47,0.69]
[1758690773937,4.79685326,208.47,208.45,37.82]
[1758690774262,30.79685326,208.47,208.46,0.69]
[1758690774443,30.79685326,208.47,208.45,37.82]
[1758690774646,42.78898642,208.47,208.46,37.82]
[1758690775252,26.0,208.48,208.46,38.51]
[1758690775453,26.0,208.48,208.47,0.69]
[1758690776466,30.79662317,208.48,208.47,0.69]
[1758690776842,30.79662317,208.48,208.47,37.82]
[1758690777566,42.78818111,208.48,208.47,37.82]
[1758690781349,42.78818111,208.48,208.47,38.51]
[1758690781547,30.79662317,208.48,208.47,38.51]
[1758690782056,4.79636507,208.5,208.49,20.0]
[1758690782368,4.79636507,208.5,208.49,58.49]
[1758690783164,26.0,208.5,208.49,38.49]
[1758690783558,26.0,208.5,208.49,58.49]
[1758690783765,26.0,208.51,208.49,37.8]
[1758690784854,5.51616306,208.5,208.49,37.8]
[1758690785056,17.50657073,208.5,208.44,0.69]
[1758690785259,26.0,208.47,208.43,20.0]
[1758690785480,26.0,208.47,208.44,37.8]
[1758690786060,0.72,208.46,208.39,0.69]
[1758690786278,0.72,208.46,208.4,37.8]
[1758690786683,26.0,208.47,208.41,20.69]
[1758690786879,30.79708337,208.46,208.42,0.69]
[1758690787092,30.79708337,208.46,208.43,37.8]
[1758690787264,26.0,208.45,208.44,20.69]
[1758690789387,30.7973135,208.45,208.44,20.69]
[1758690789887,30.7973135,208.45,208.44,20.0]
[1758690790066,30.7973135,208.45,208.44,57.8]
[1758690790406,30.7973135,208.45,208.44,37.8]
[1758690790702,30.7973135,208.45,208.44,57.8]
[1758690790872,30.7973135,208.45,208.44,37.8]
[1758690791284,30.7973135,208.45,208.44,57.8]
[1758690791472,30.7973135,208.45,208.44,58.49]
[1758690791795,4.7973135,208.45,208.44,58.49]
[1758690792688,4.7973135,208.45,208.44,37.8]
[1758690792864,4.7973135,208.45,208.44,58.49]
[1758690794193,133.9,208.46,208.44,58.49]
[1758690794374,133.9,208.46,208.45,0.67]
[1758690794690,138.69708337,208.46,208.45,0.67]
[1758690795304,133.9,208.46,208.45,0.67]
[1758690795494,159.9,208.46,208.45,0.67]
[1758690796070,159.9,208.46,208.44,57.8]
[1758690796071,138.69708337,208.46,208.44,57.8]
[1758690796685,138.69708337,208.46,208.44,58.47]
[1758690796890,138.69708337,208.46,208.45,37.8]
[1758690798402,26.0,208.43,208.42,20.0]
[1758690798576,26.0,208.43,208.42,37.8]
[1758690798775,26.0,208.43,208.42,57.8]
[1758690798975,26.0,208.43,208.42,37.8]
[1758690799589,30.79777383,208.43,208.42,58.47]
[1758690800503,30.79777383,208.43,208.42,57.8]
[1758690800711,30.79777383,208.43,208.42,58.46]
[1758690801301,26.0,208.43,208.42,58.46]
[1758690803714,26.0,208.43,208.42,73.59075459]
[1758690803894,26.0,208.43,208.42,78.38875862]
[1758690804089,4.79684763,208.48,208.42,78.38875862]
[1758690804298,4.79501318,208.55,208.49,20.0]
[1758690804612,4.79501318,208.55,208.5,37.8]
[1758690804811,0.66,208.54,208.5,37.8]
[1758690805511,4.79547307,208.53,208.51,0.66]
[1758690805716,26.0,208.52,208.51,0.66]
[1758690805918,4.79547307,208.53,208.51,58.46]
[1758690806114,4.79547307,208.53,208.52,0.66]
[1758690806706,30.79547307,208.53,208.52,0.66]
[1758690807900,30.79523823,208.55,208.53,20.0]
[1758690808112,30.79523823,208.55,208.54,38.46]
[1758690808415,4.7947717,208.57,208.56,20.0]
[1758690808601,4.7947717,208.57,208.56,57.78]